Workbook

Sheet Analiza profitabilității
B2: Analiza profitabilității relativ la clienți
B3: 20 IANUARIE 2013 | D3: NUME FIRMĂ
B6: Activitate client | C6: Client 1 | D6: Client 2 | E6: Client 3 | F6: General
B7: Număr de clienți activi - începutul perioadei | C7: 5 | D7: 8 | E7: 8 | F7: =SUM(C7:E7) -> 21
B8: Număr de clienți adăugați | C8: 2 | D8: 4 | E8: 4 | F8: =SUM(C8:E8) -> 10
B9: Număr de clienți pierduți/relație terminată | C9: -1 | D9: -2 | E9: -2 | F9: -5
B10: Număr de clienți activi - sfârșitul perioadei | C10: =SUBTOTAL(109,'Analiza profitabilității'!$C$7:$C$9) -> 6 | D10: =SUBTOTAL(109,'Analiza profitabilității'!$D$7:$D$9) -> 10 | E10: =SUBTOTAL(109,'Analiza profitabilității'!$E$7:$E$9) -> 10 | F10: 26
B12: Analiza profitabilității
B13: Venit per segment | C13: 1500000 | D13: 1800000 | E13: 2500000 | F13: =SUM('Analiza profitabilității'!$C13:$E13) -> 5800000
B14: Pondere | C14: =C13/$F$13 -> 0.2586206897 | D14: =D13/$F$13 -> 0.3103448276 | E14: 0.4310344828 | F14: =SUM(C14:E14) -> 1
B16: Costul vânzărilor
B17: Costuri de asistență și servicii regulate | C17: 1000000 | D17: 1400000 | E17: 1400000 | F17: =SUM('Analiza profitabilității'!$C17:$E17) -> 3800000
B18: Alte costuri directe cu clienții | C18: 200000 | D18: 100000 | E18: 100000 | F18: =SUM('Analiza profitabilității'!$C18:$E18) -> 400000
B19: Costul total al vânzărilor | C19: =SUBTOTAL(109,'Analiza profitabilității'!$C$17:$C$18) -> 1200000 | D19: =SUBTOTAL(109,'Analiza profitabilității'!$D$17:$D$18) -> 1500000 | E19: =SUBTOTAL(109,'Analiza profitabilității'!$E$17:$E$18) -> 1500000 | F19: =SUBTOTAL(109,'Analiza profitabilității'!$F$17:$F$18) -> 4200000
B20: Marjă brută | C20: =C13-'Analiza profitabilității'!$C$19 -> 300000 | D20: =D13-'Analiza profitabilității'!$D$19 -> 300000 | E20: =E13-'Analiza profitabilității'!$E$19 -> 1000000 | F20: =F13-'Analiza profitabilității'!$F$19 -> 1600000
B21: Pondere | C21: =MAX(0,MIN(1,C20/$F$20)) -> 0.1875 | D21: =MAX(0,MIN(1,D20/$F$20)) -> 0.1875 | E21: 0.625 | F21: =SUM('Analiza profitabilității'!$C21:$E21) -> 1
B23: Alte costuri
B24: Atragere clienți | C24: 105000 | D24: 120000 | E24: 235000 | F24: =SUM('Analiza profitabilității'!$C24:$E24) -> 460000
B25: Marketing pentru clienți | C25: 150000 | D25: 125000 | E25: 275000 | F25: =SUM('Analiza profitabilității'!$C25:$E25) -> 550000
B26: Relații terminate clienți | C26: 80000 | D26: 190000 | E26: 140000 | F26: =SUM('Analiza profitabilității'!$C26:$E26) -> 410000
B27: Total alte costuri cu clienții | C27: =SUBTOTAL(109,'Analiza profitabilității'!$C$24:$C$26) -> 335000 | D27: =SUBTOTAL(109,'Analiza profitabilității'!$D$24:$D$26) -> 435000 | E27: =SUBTOTAL(109,'Analiza profitabilității'!$E$24:$E$26) -> 650000 | F27: =SUBTOTAL(109,'Analiza profitabilității'!$F$24:$F$26) -> 1420000
B29: Profit relativ la clienți după segment | C29: =C20-C27 -> -35000 | D29: =D20-D27 -> -135000 | E29: =E20-E27 -> 350000 | F29: =F20-'Analiza profitabilității'!$F$27 -> 180000
B30: Pondere | C30: =MAX(0,MIN(1,C29/$F$29)) -> 0 | D30: =MAX(0,MIN(1,D29/$F$29)) -> 0 | E30: 1 | F30: =SUM('Analiza profitabilității'!$C30:$E30) -> 1
B32: Rezumat măsurători
B33: Cost mediu per client atras | C33: =C24/C8 -> 52500 | D33: =D24/D8 -> 30000 | E33: =E24/E8 -> 58750
B34: Cost mediu per client pierdut | C34: =-C26/C9 -> 80000 | D34: =-D26/D9 -> 95000 | E34: =-E26/E9 -> 70000
B35: Cost mediu marketing per client activ | C35: =C25/'Analiza profitabilității'!$C$10 -> 25000 | D35: =D25/'Analiza profitabilității'!$D$10 -> 12500 | E35: =E25/'Analiza profitabilității'!$E$10 -> 27500
B36: Profit mediu sau pierdere medie per client | C36: =C29/'Analiza profitabilității'!$C$10 -> -5833.333333 | D36: =D29/'Analiza profitabilității'!$D$10 -> -13500 | E36: =E29/'Analiza profitabilității'!$E$10 -> 35000

Sheet Diagramă Rezumat măsurători
B2: Rezumat măsurători per client
B3: =DataRaport -> 20 IANUARIE 2013 | R3: =NumeFirmă -> NUME FIRMĂ
